Cogmind - Beta 13 @@@ ROGUE MODE // 2024.06.28 @ 16:15:12 Player: CrossedViper Result: Destroyed by G-67 Veteran with Field Laser Performance ------------- Evolutions (3) 1500 Regions Visited (13) 2600 Robots Destroyed (205) 1025 Value Destroyed (6855) 6855 Prototype IDs (33) 660 Alien Tech Used (0) 0 Bonus (1672) 1672 TOTAL SCORE: 14312 Bonus ------- High Alert Combat Kills 641 Follower Combat Kills 349 Entered Garrisons 200 Met Data Miner 300 Acquired ECA 300 Friendly Fire -118 Cogmind --------- Core Integrity 0/700 Matter 111/300 Energy 13/100 System Corruption 17% Temperature Warm (130) Movement Walking (105) Location -6/Proximity Caves Parts ------- > --- POWER (1) -------- (None) > --- PROPULSION (4) --- VSS Leg Enhanced Armored Leg Enhanced Armored Leg Enhanced Armored Leg (fused) > --- UTILITY (6) ------ Medium Storage Unit Visual Processing Unit Transport Network Coupler Encrypted Comm Array Experimental ECM Suite > --- WEAPON (2) ------- Cooled Particle Cannon Light Antimatter Cannon > --- INVENTORY (10) --- Light Angular Momentum Engine Cooled Aerolev Unit Cooled Aerolev Unit Long-range Tractor Beam Cobbler Unit Light Antimatter Cannon Light Antimatter Cannon Multitool Shock Maul Peak State ------------ > --- POWER ------------ F-cell Engine > --- PROPULSION ------- VSS Leg Enhanced Armored Leg Enhanced Armored Leg Enhanced Armored Leg > --- UTILITY ---------- Medium Storage Unit Visual Processing Unit Transport Network Coupler Encrypted Comm Array Experimental ECM Suite Makeshift Light Armor Plating > --- WEAPON ----------- Light Antimatter Cannon Light Antimatter Cannon > --- INVENTORY -------- Cooled Aerolev Unit Cooled Aerolev Unit Long-range Tractor Beam Cobbler Unit Cooled Particle Cannon Light Antimatter Cannon Multitool Shock Maul [Rating: 71] Favorites ----------- Power Improved Ion Engine Engine Improved Ion Engine Power Core Light Nuclear Core Propulsion Light Treads Treads Light Treads Leg Enhanced Armored Leg Wheel Armored Huge Wheel Hover Unit Cooled Aerolev Unit Utility Scrap Shield Device Heat Sink Storage Medium Storage Unit Processor Transport Network Coupler Protection Scrap Shield Weapon Subdweller Beam Cannon Energy Gun Subdweller Laser Energy Cannon Subdweller Beam Cannon Ballistic Gun Subdweller Machine Gun Ballistic Cannon Light Antimatter Cannon Launcher Grenade Launcher Special Weapon Multitool Impact Weapon Heavy Hammer Slashing Weapon Great Axe Build | -11 -10 -10 -10 -8 -8 -8 -7 -7 -7 -7 -7 -7 -6 ------- Run | Yrd Mat Min Sub Mat Gar Mat Fac Was Fac Low Low Dat Pro Slots Evolved 6 | . . . . 4 . . 2 . . . . . . Power . | . . . . . . . . . . . . . . Propulsion 2 | . . . . 1 . . 1 . . . . . . Utility 4 | . . . . 3 . . 1 . . . . . . Weapon . | . . . . . . . . . . . . . . Parts Attached 160 | 7 9 . 20 13 22 21 9 2 45 6 2 2 2 Power 13 | 1 3 . . . 2 . 1 . 6 . . . . Engine 11 | 1 3 . . . . . 1 . 6 . . . . Core 2 | . . . . . 2 . . . . . . . . Reactor . | . . . . . . . . . . . . . . Propulsion 34 | 2 . . 7 3 2 3 3 1 11 2 . . . Treads 19 | 2 . . 5 2 2 3 2 . 3 . . . . Leg 5 | . . . . . . . . . 4 1 . . . Wheel 9 | . . . 2 1 . . 1 1 4 . . . . Hover 1 | . . . . . . . . . . 1 . . . Flight . | . . . . . . . . . . . . . . Utility 45 | 1 2 . 5 5 5 8 1 . 15 1 2 . . Device 19 | . 1 . . 2 1 3 . . 9 1 2 . . Storage 7 | 1 1 . 3 . 1 . . . 1 . . . . Processor 6 | . . . . . . 2 1 . 3 . . . . Hackware . | . . . . . . . . . . . . . . Protection 13 | . . . 2 3 3 3 . . 2 . . . . Artifact . | . . . . . . . . . . . . . . Weapon 68 | 3 4 . 8 5 13 10 4 1 13 3 . 2 2 Energy Gun 20 | 3 2 . 3 3 7 1 . . 1 . . . . Energy Cannon 12 | . 1 . 2 . . 2 . . 4 1 . 1 1 Ballistic Gun 6 | . . . 2 1 2 1 . . . . . . . Ballistic Cannon 8 | . . . . . . . . . 5 1 . 1 1 Launcher 11 | . 1 . . 1 4 1 2 . 2 . . . . Special Weapon 1 | . . . . . . . . . . 1 . . . Impact Weapon 2 | . . . 1 . . . . . 1 . . . . Slashing Weapon 8 | . . . . . . 5 2 1 . . . . . Piercing Weapon . | . . . . . . . . . . . . . . Special Melee Weapon . | . . . . . . . . . . . . . . Unidentified Prototypes 10 | . . . . . . . . . 9 1 . . . Parts Lost 31 | . . . 1 2 9 7 3 1 5 1 . . 2 Power 3 | . . . . . 1 . 1 . . . . . 1 Propulsion 6 | . . . . . 2 1 1 . 2 . . . . Utility 13 | . . . . 1 3 4 1 . 3 . . . 1 Weapon 9 | . . . 1 1 3 2 . 1 . 1 . . . Highest Loss Streak 6 | . . . 1 1 4 6 2 1 2 1 . . 2 To Critical Strikes . | . . . . . . . . . . . . . . Average Slot Usage (%) 86 | . 96 100 85 73 75 95 90 68 79 98 99 85 96 Engine 9 | . 13 14 14 9 2 . . 1 6 7 7 7 5 Core 1 | . . . . . 5 8 4 . . . . . . Treads 18 | . 28 28 26 11 8 25 12 . 4 . . . . Leg 2 | . . . . . . . . . . 30 30 30 30 Wheel 3 | . . . 1 9 9 . 5 13 12 . . . . Device 6 | . 10 14 . 7 10 14 6 6 10 13 15 23 21 Storage 6 | . 14 14 2 9 10 8 6 2 4 7 7 7 7 Processor 4 | . . . . . . 6 12 13 15 15 15 15 15 Protection 9 | . . . 11 8 12 11 11 6 7 7 6 . . Energy Gun 5 | . 18 14 4 15 10 4 . . . . . . . Energy Cannon 10 | . 6 14 20 1 . 2 . . 2 3 7 . 5 Ballistic Gun 2 | . . . 3 . 6 . . . . . . . . Slashing Weapon 3 | . . . . . . 12 25 21 7 . . . . Naked Turns . | . . . . . . . . . . . . . . Heaviest Build 295 | 12 23 23 219 237 295 109 109 104 48 40 40 38 38 Greatest Support 72 | 40 40 40 40 28 28 60 28 56 72 72 52 52 52 Greatest Overweight (x) 11 | . . . 10 11 10 4 3 3 1 . . . 1 Average Overweight (x) 1 | . . . 1 9 5 1 3 . . . . . . Largest Inventory Capacity 35 | 8 10 10 35 35 35 25 25 25 10 10 10 10 10 Average Capacity 14 | 7 9 10 9 35 31 25 25 13 8 10 10 10 10 Most Carried 35 | 4 10 10 30 35 33 25 21 21 10 10 10 10 10 Average Carried 12 | 2 9 10 6 30 27 22 18 11 7 9 10 10 10 Final Capacity 35 | 8 10 10 35 35 25 25 25 5 10 10 10 10 10 Final Carried 33 | 4 10 10 30 33 20 20 19 5 10 10 10 10 10 Class Distribution -------------------- 31% | Subdweller-Mutant 27% | Mutant 16% | Hauler-Mutant 14% | Scavenger-Mutant 8% | Gladiator Dominant Class ---------------- Mutant | -10/Materials Mutant | -10/Mines Subdweller-Mutant | -10/Subcaves Hauler-Mutant | -8/Materials Hauler-Mutant | -8/Garrison Scavenger-Mutant | -8/Materials Scavenger-Gladiator | -7/Factory Gladiator | -7/Waste Mutant | -7/Factory Mutant | -7/Lower Caves Mutant | -7/Lower Caves Mutant | -7/Data Miner Mutant | -6/Proximity Caves Resources | -11 -10 -10 -10 -8 -8 -8 -7 -7 -7 -7 -7 -7 -6 ----------- Run | Yrd Mat Min Sub Mat Gar Mat Fac Was Fac Low Low Dat Pro Matter Collected 3977 | 270 160 11 446 166 366 334 71 . 1717 353 57 . 26 Remotely 266 | . . . . . . . . . 266 . . . . Salvage Created 7138 | 167 488 . 1017 618 589 869 360 . 2835 195 . . . Parts 415 | 6 42 . 66 41 28 49 26 . 152 5 . . . Haulers Intercepted 10 | . 2 . . 1 . 1 . . 6 . . . . Recyclers Shooed 7 | . 1 . . . . . . . 6 . . . . Parts Field Recycled . | . . . . . . . . . . . . . . Retrieved Matter . | . . . . . . . . . . . . . . Parts Self-Destructed 29 | . . . 14 . . . . . . 8 4 . 3 Prevented 2 | . . . . . . . . . . . 2 . . Kills | -11 -10 -10 -10 -8 -8 -8 -7 -7 -7 -7 -7 -7 -6 ------- Run | Yrd Mat Min Sub Mat Gar Mat Fac Was Fac Low Low Dat Pro Combat Hostiles Destroyed 124 | . 11 . 17 13 22 15 11 . 32 2 . . 1 Melee 19 | . . . . . . 5 3 . 11 . . . . Guns 34 | . 6 . 7 9 9 3 . . . . . . . Cannons 26 | . . . 10 . . 4 . . 11 . . . 1 AOE 44 | . 5 . . 4 13 3 8 . 9 2 . . . Classes Destroyed 20 | 3 5 . 5 3 1 . 1 . 2 . . . . Worker 29 | 2 1 . . . . . 5 . 21 . . . . Builder 12 | . . . . 2 . . 3 . 7 . . . . Tunneler 2 | 1 . . . . . 1 . . . . . . . Hauler 10 | . 2 . . 1 . 1 . . 6 . . . . Recycler 17 | 1 . . . . . 2 . . 14 . . . . Operator 4 | . 1 . . 1 . 2 . . . . . . . Turret 2 | . . . 2 . . . . . . . . . . Watcher 6 | . 3 . . 1 . . 1 . 1 . . . . Swarmer 21 | . 3 . 3 4 3 . 5 . 3 . . . . Grunt 59 | . 8 . . 4 16 12 3 . 14 2 . . . Duelist 2 | . . . . 1 . . . . . . . . 1 Protector 1 | . . . . . . . . . 1 . . . . Sentry 9 | . . . 1 3 2 3 . . . . . . . Demolisher 1 | . . . . . 1 . . . . . . . . Specialist 3 | . . . . . . . . . 3 . . . . Hunter 7 | . . . . 1 . . 2 . 4 . . . . Programmer 8 | . . . . . . . 1 . 7 . . . . Artisan 1 | . . . 1 . . . . . . . . . . Cobbler 1 | . . . 1 . . . . . . . . . . Subdweller 13 | . . . 13 . . . . . . . . . . Best Kill Streak 21 | 4 4 . 3 6 7 4 12 . 21 2 . . 1 Combat Bots Only 7 | . 3 . 3 5 7 4 5 . 7 2 . . 1 Max Kills in Single Turn 3 | 1 2 . 1 2 2 2 3 . 3 2 . . 1 Gunslinging . | . . . . . . . . . . . . . . Exploded 3 | . 2 . . 2 2 2 2 . 3 2 . . . Melee 1 | . . . . . . 1 1 . 1 . . . . Uniques/NPCs Destroyed . | . . . . . . . . . . . . . . Combat | -11 -10 -10 -10 -8 -8 -8 -7 -7 -7 -7 -7 -7 -6 -------- Run | Yrd Mat Min Sub Mat Gar Mat Fac Was Fac Low Low Dat Pro Hostile Shots Fired 758 | . 33 . 102 97 110 89 64 2 197 3 . . 61 Missed 206 | . 13 . 38 28 24 22 12 . 55 . . . 14 Damage Taken 9333 | . 288 21 1038 993 1535 1137 868 94 2404 93 . . 862 Core 1393 | . 50 . 113 156 206 161 125 . 401 . . . 181 Absorbed by Shields 52 | . . . . . . . . . . . . . 52 Redirected to Shielding 42 | . . . . . 39 3 . . . . . . . Core Remaining (%) 46 | 100 . . 34 . . 4 . . . . . . . Volleys Fired 406 | 8 36 1 81 45 64 42 11 . 73 28 1 . 16 Largest 2 | 2 2 2 2 2 2 2 1 . 2 1 1 . 2 Hottest 160 | 80 110 110 160 140 120 140 30 . 147 60 60 . 120 Shots Fired 658 | 16 59 2 162 84 94 67 11 . 109 27 1 . 26 Gun 333 | 16 45 1 70 82 77 42 . . . . . . . Cannon 268 | . 5 1 92 . . 22 . . 96 25 1 . 26 Launcher 56 | . 9 . . 2 17 3 11 . 13 1 . . . Special 1 | . . . . . . . . . . 1 . . . Kinetic 201 | . . . 45 5 42 10 . . 64 14 1 . 20 Thermal 355 | . 6 2 117 77 35 54 . . 45 13 . . 6 Explosive 42 | . 9 . . 2 17 3 11 . . . . . . Electromagnetic 60 | 16 44 . . . . . . . . . . . . Robot Hit Streak 13 | 4 8 . 12 13 6 11 5 . 6 6 . . 13 Robot Miss Streak 5 | 2 5 2 3 5 3 5 1 . 5 . . . 2 Penetration Max 1 | . . . . . . . . . 1 . . . . Secondary Targets 5 | . 1 . 1 2 1 . . . . . . . . Max Gunslinging Chain 1 | . 1 . 1 1 1 . . . . . . . . Shots Hit Robots 484 | 10 32 . 87 52 49 61 25 . 145 5 . . 18 Core Hits 315 | 6 28 . 34 27 48 31 27 . 103 5 . . 6 Critical Kills 2 | . . . . . 1 . . . 1 . . . . Critical Parts Destroyed 3 | . . . 1 1 . 1 . . . . . . . Critical Strikes 24 | . 1 1 1 1 1 1 3 . 12 . . . 3 Burn 1 | . . 1 . . . . . . . . . . . Meltdown 1 | . . . . . . . . . 1 . . . . Destroy 4 | . . . 1 1 1 1 . . . . . . . Blast 8 | . . . . . . . . . 5 . . . 3 Corrupt 1 | . 1 . . . . . . . . . . . . Sever 9 | . . . . . . . 3 . 6 . . . . Melee Attacks 166 | . . . 2 . . 25 28 11 100 . . . . Impact 3 | . . . 2 . . . . . 1 . . . . Slashing 163 | . . . . . . 25 28 11 99 . . . . Piercing . | . . . . . . . . . . . . . . Sneak Attacks 31 | . . . . . . 1 2 . 28 . . . . Combat Hostiles . | . . . . . . . . . . . . . . Follow-up Attacks 22 | . . . . . . 3 10 . 9 . . . . Damage Inflicted 21198 | 151 954 37 2118 1348 2040 2158 2121 . 9271 325 . . 675 Guns 3876 | 150 387 12 769 1172 798 588 . . . . . . . Cannons 4758 | . 72 17 1349 . . 433 . . 2131 81 . . 675 Explosions 6428 | . 477 . . 176 1242 361 1234 . 2696 242 . . . Melee 6081 | . . . . . . 754 887 . 4440 . . . . Ramming 53 | 1 18 8 . . . 22 . . 4 . . . . Kinetic 5959 | . . . 597 102 497 133 . . 3822 242 . . 566 Thermal 5110 | . 104 29 1521 1070 301 888 . . 1005 83 . . 109 Explosive 3458 | . 445 . . 176 1242 361 1234 . . . . . . Electromagnetic 537 | 150 387 . . . . . . . . . . . . Impact 68 | . . . . . . . . . 68 . . . . Slashing 6013 | . . . . . . 754 887 . 4372 . . . . Piercing . | . . . . . . . . . . . . . . Highest Corruption 19 | . 2 2 2 . . . 2 18 19 17 17 17 17 Average Corruption 6 | . 2 2 2 . . . 1 13 17 17 17 17 17 Corruption Purged 4 | . . . . . . . . . 4 . . . . Corruption Blocked . | . . . . . . . . . . . . . . Effects 239 | . 3 3 91 . . . 1 7 86 20 14 5 9 Message Errors 51 | . . 1 28 . . . . . 10 5 5 . 2 Matter Fused 49 | . 2 . 18 . . . 1 2 17 3 3 2 1 Heat Flow Errors 21 | . . 1 7 . . . . . 7 1 2 1 2 Energy Discharges 32 | . 1 . 9 . . . . 1 13 2 3 1 2 Parts Rejected 5 | . . . . . . . . 1 4 . . . . Parts Fused 2 | . . . 1 . . . . . . 1 . . . Data Loss (minor) 32 | . . 1 11 . . . . 1 12 4 1 1 1 Data Loss (major) 15 | . . . 9 . . . . . 5 1 . . . Misfires 7 | . . . 5 . . . . . 2 . . . . Alerts 8 | . . . 3 . . . . 1 2 2 . . . Misdirections 8 | . . . . . . . . 1 7 . . . . Weapon Failures 9 | . . . . . . . . . 7 1 . . 1 Overload Shots 8 | . . . . . . . . . 8 . . . . Effects 1 | . . . . . . . . . 1 . . . . Energy Bleed 1 | . . . . . . . . . 1 . . . . Overflow Damage 1106 | . . . . . 74 105 155 . 772 . . . . Projectiles 130 | . . . . . . . . . 130 . . . . Explosions 192 | . . . . . 74 12 31 . 75 . . . . Melee 784 | . . . . . . 93 124 . 567 . . . . Knockbacks 17 | . . . . . . . . . 8 . . . 9 Impact . | . . . . . . . . . . . . . . Kinetic 16 | . . . . . . . . . 8 . . . 8 Secondary 1 | . . . . . . . . . . . . . 1 Self-Inflicted Damage 562 | . 82 . . 22 92 103 77 . 139 47 . . . Shots 19 | . 3 . . 2 4 3 2 . 4 1 . . . Rammed 12 | 1 6 2 . . . 2 . . 1 . . . . Targets Rammed 14 | 1 7 2 . . . 3 . . 1 . . . . Kicked . | . . . . . . . . . . . . . . Crushed 2 | . 1 . . . . 1 . . . . . . . Highest Temperature 432 | 90 126 101 362 199 96 325 3 . 432 197 219 203 201 Average Temperature 79 | 41 44 45 75 100 25 117 3 . 98 51 93 103 81 Received Heat Transfer 3096 | . 78 9 485 261 540 585 153 . 603 27 . . 355 Effects 14 | . . . 1 . . 3 . . 7 . . . 3 Shutdowns 1 | . . . . . . 1 . . . . . . . Energy Bleed 3 | . . . . . . 2 . . 1 . . . . Interference 3 | . . . . . . . . . . . . . 3 Matter Decay 1 | . . . 1 . . . . . . . . . . Damage (major) 6 | . . . . . . . . . 6 . . . . Siege Activations . | . . . . . . . . . . . . . . Robots Corrupted . | . . . . . . . . . . . . . . Combat Hostiles . | . . . . . . . . . . . . . . Parts Fried 4 | 1 3 . . . . . . . . . . . . Impact Corruptions . | . . . . . . . . . . . . . . Robots Melted 1 | . . . . . . . . . 1 . . . . Combat Hostiles 1 | . . . . . . . . . 1 . . . . Parts Melted 7 | . . . 3 1 . . . . 3 . . . . Heat Transferred 6765 | . 198 148 2271 1300 369 1142 . . 1127 117 . . 93 Parts Sabotaged . | . . . . . . . . . . . . . . Parts Stolen . | . . . . . . . . . . . . . . Parts Stripped . | . . . . . . . . . . . . . . Power Chain Reactions 1 | . 1 . . . . . . . . . . . . Alert | -11 -10 -10 -10 -8 -8 -8 -7 -7 -7 -7 -7 -7 -6 ------- Run | Yrd Mat Min Sub Mat Gar Mat Fac Was Fac Low Low Dat Pro Peak Influence 1082 | 20 327 172 . 244 1082 658 381 119 949 . . . . Initial 527 | . 13 94 . . 154 527 183 119 63 . . . . Average 336 | 3 147 158 . 137 618 455 237 102 308 . . . . Maximum Alert Level 3 | . 1 . . 1 3 2 2 . 3 . . . . Low Security (%) 34 | 100 71 100 . 71 2 . 31 100 31 . . . . Level 1 34 | . 28 . . 28 21 40 68 . 45 . . . . Level 2 21 | . . . . . 25 59 . . 15 . . . . Level 3 10 | . . . . . 49 . . . 7 . . . . Level 4 . | . . . . . . . . . . . . . . Level 5 . | . . . . . . . . . . . . . . High Security . | . . . . . . . . . . . . . . Max Security . | . . . . . . . . . . . . . . Squads Dispatched 23 | . 3 . . 3 . 5 3 . 8 . . . 1 Investigation 7 | . 2 . . 1 . 2 1 . 1 . . . . Extermination 2 | . . . . . . . . . 2 . . . . Reinforcement 10 | . 1 . . 1 . 3 2 . 3 . . . . Assault 3 | . . . . . . . . . 2 . . . 1 Garrison 1 | . . . . 1 . . . . . . . . . Intercept . | . . . . . . . . . . . . . . Searches Triggered . | . . . . . . . . . . . . . . Construction Impeded 3 | . . . . . . 1 1 . 1 . . . . Haulers Reinforced 2 | . . . . . . . . . 2 . . . . Active Scanning Responses . | . . . . . . . . . . . . . . Cargo Convoy Interrupts 1 | . . . . . . . . . 1 . . . . Stealth | -11 -10 -10 -10 -8 -8 -8 -7 -7 -7 -7 -7 -7 -6 --------- Run | Yrd Mat Min Sub Mat Gar Mat Fac Was Fac Low Low Dat Pro Distress Signals 7 | . 1 . . 3 . . 2 . 1 . . . . Communications Jammed . | . . . . . . . . . . . . . . Distress Signals . | . . . . . . . . . . . . . . Times Spotted 231 | . 18 2 38 19 25 28 15 7 67 2 . . 10 Peak Tracking Total 12 | . 4 1 3 4 5 4 6 6 12 2 . . 7 Tactical Retreats 15 | . 3 . 3 . 1 1 . 1 4 . . . 2 Traps | -11 -10 -10 -10 -8 -8 -8 -7 -7 -7 -7 -7 -7 -6 ------- Run | Yrd Mat Min Sub Mat Gar Mat Fac Was Fac Low Low Dat Pro Traps Triggered 7 | . 3 . . . 2 1 1 . . . . . . Indirectly . | . . . . . . . . . . . . . . Trap Hack Attempts . | . . . . . . . . . . . . . . Triggered . | . . . . . . . . . . . . . . Disarmed . | . . . . . . . . . . . . . . Reprogrammed . | . . . . . . . . . . . . . . Reused . | . . . . . . . . . . . . . . Traps Extracted . | . . . . . . . . . . . . . . Installed 1 | . . . 1 . . . . . . . . . . Triggered 1 | . . . . . . . . . . . 1 . . Most Traps Carried 1 | . . . 1 . . . . . . . . . . Machines | -11 -10 -10 -10 -8 -8 -8 -7 -7 -7 -7 -7 -7 -6 ---------- Run | Yrd Mat Min Sub Mat Gar Mat Fac Was Fac Low Low Dat Pro Machines Disabled 23 | . 1 . 3 1 10 . 2 . 6 . . . . Max in Single Turn 2 | . 1 . 1 1 2 . 2 . 1 . . . . Garrison Relay 4 | . . . . . 4 . . . . . . . . Phase Generator 1 | . . . . . 1 . . . . . . . . Machines Repaired . | . . . . . . . . . . . . . . Machines Dismantled . | . . . . . . . . . . . . . . Machines Sabotaged . | . . . . . . . . . . . . . . Overloaded Fab Kills . | . . . . . . . . . . . . . . Hacking | -11 -10 -10 -10 -8 -8 -8 -7 -7 -7 -7 -7 -7 -6 --------- Run | Yrd Mat Min Sub Mat Gar Mat Fac Was Fac Low Low Dat Pro Machines Accessed 26 | . 6 . 2 3 2 5 3 . 1 . . 4 . Terminals 14 | . 4 . . 2 2 3 3 . . . . . . Fabricators 1 | . . . . . . . . . 1 . . . . Repair Stations . | . . . . . . . . . . . . . . Recycling Units 3 | . 2 . . . . 1 . . . . . . . Scanalyzers 1 | . . . . . . 1 . . . . . . . Garrison Access 1 | . . . . 1 . . . . . . . . . Total Hacks 94 | . 23 . 2 8 2 20 6 . 4 . . 29 . Successful 60 | . 8 . 2 3 2 15 . . 1 . . 29 . Failed 33 | . 14 . . 5 . 5 6 . 3 . . . . Catastrophic 4 | . 2 . . . . 1 1 . . . . . . Database Lockouts 1 | . 1 . . . . . . . . . . . . Manual 25 | . 15 . . 7 . 2 1 . . . . . . Terminals 41 | . 19 . . 7 2 7 6 . . . . . . Fabricators 4 | . . . . . . . . . 4 . . . . Repair Stations . | . . . . . . . . . . . . . . Recycling Units 5 | . 4 . . . . 1 . . . . . . . Scanalyzers 12 | . . . . . . 12 . . . . . . . Garrison Access 1 | . . . . 1 . . . . . . . . . Terminal Hacks 41 | . 5 . 2 . 2 3 . . . . . 29 . Record 12 | . . . 1 . . . . . . . . 11 . Part Schematic 11 | . . . . . . . . . . . . 11 . Robot Schematic 4 | . . . . . . . . . . . . 4 . Robot Analysis 1 | . 1 . . . . . . . . . . . . Prototype ID Bank 4 | . 1 . . . . . . . . . . 3 . Branch Access Points 1 | . 1 . . . . . . . . . . . . Emergency Access Points 2 | . . . . . 1 1 . . . . . . . Alert Level 1 | . . . . . . 1 . . . . . . . Unreport Threat 1 | . . . . . . 1 . . . . . . . Hauler Manifests 1 | . 1 . . . . . . . . . . . . Zone Layout 1 | . 1 . . . . . . . . . . . . Garrison Registry 1 | . . . . . 1 . . . . . . . . Derelict Proto ID Bank 1 | . . . 1 . . . . . . . . . . Fabricator Hacks 1 | . . . . . . . . . 1 . . . . Build 1 | . . . . . . . . . 1 . . . . Repair Station Hacks . | . . . . . . . . . . . . . . Recycling Unit Hacks . | . . . . . . . . . . . . . . Scanalyzer 11 | . . . . . . 11 . . . . . . . Insert Component 5 | . . . . . . 5 . . . . . . . Analyze 6 | . . . . . . 6 . . . . . . . Garrison Access Hacks 1 | . . . . 1 . . . . . . . . . Unlock Access 1 | . . . . 1 . . . . . . . . . Unauthorized Hacks 6 | . 3 . . 2 . 1 . . . . . . . Terminals 3 | . 1 . . 2 . . . . . . . . . Botnet 3 | . 1 . . 2 . . . . . . . . . Fabricators . | . . . . . . . . . . . . . . Repair Stations . | . . . . . . . . . . . . . . Recycling Units 3 | . 2 . . . . 1 . . . . . . . Tunnel 3 | . 2 . . . . 1 . . . . . . . Scanalyzers . | . . . . . . . . . . . . . . Garrison Access . | . . . . . . . . . . . . . . Data Cores Recovered . | . . . . . . . . . . . . . . Used . | . . . . . . . . . . . . . . Hacking Detections 17 | . 5 . . 3 1 4 3 . 1 . . . . Full Trace Events 5 | . 2 . . 1 . . 1 . 1 . . . . Feedback Events . | . . . . . . . . . . . . . . Feedback Blocked . | . . . . . . . . . . . . . . Robot Schematics Acquired 4 | . . . . . . . . . . . . 4 . Robots Built . | . . . . . . . . . . . . . . Authchips . | . . . . . . . . . . . . . . Time . | . . . . . . . . . . . . . . Total Robot Build Rating . | . . . . . . . . . . . . . . Part Schematics Acquired 16 | . . . . . . 5 . . . . . 11 . Parts Built 1 | . . . . . . . . . 1 . . . . Authchips . | . . . . . . . . . . . . . . Time 152 | . . . . . . . . . 152 . . . . Total Part Build Rating 5 | . . . . . . . . . 5 . . . . Parts Repaired . | . . . . . . . . . . . . . . Time . | . . . . . . . . . . . . . . Parts Recycled . | . . . . . . . . . . . . . . Recycled Matter . | . . . . . . . . . . . . . . Retrieved Matter . | . . . . . . . . . . . . . . Retrieved Components . | . . . . . . . . . . . . . . Parts Scanalyzed 5 | . . . . . . 5 . . . . . . . Part Schematics Acquired 5 | . . . . . . 5 . . . . . . . Parts Damaged . | . . . . . . . . . . . . . . Bothacking | -11 -10 -10 -10 -8 -8 -8 -7 -7 -7 -7 -7 -7 -6 ------------ Run | Yrd Mat Min Sub Mat Gar Mat Fac Was Fac Low Low Dat Pro Used RIF Installer . | . . . . . . . . . . . . . . Robots Hacked . | . . . . . . . . . . . . . . Non-combat . | . . . . . . . . . . . . . . Combat . | . . . . . . . . . . . . . . Robot Hacks Applied . | . . . . . . . . . . . . . . Relay Couplers Released 24 | . . . . . 17 . . . 7 . . . . Machine Destruction 17 | . . . . . 17 . . . . . . . . Programmers 7 | . . . . . . . . . 7 . . . . Fabnet Peak Effective % . | . . . . . . . . . . . . . . Robots Rewired 3 | . . . . . 3 . . . . . . . . Allies Hacked . | . . . . . . . . . . . . . . Hacks Repelled . | . . . . . . . . . . . . . . Allies | -11 -10 -10 -10 -8 -8 -8 -7 -7 -7 -7 -7 -7 -6 -------- Run | Yrd Mat Min Sub Mat Gar Mat Fac Was Fac Low Low Dat Pro Total Allies 8 | . . 2 . . 3 . . 1 . 1 . . 1 Largest Group 3 | . . 2 2 . 2 3 . 1 . 1 . . 1 Highest-Rated Group 146 | . . 38 38 . 32 48 . 31 . 146 . . 96 Highest-Rated Ally 146 | . . 31 31 . 16 16 . 31 . 146 . . 96 Total Orders . | . . . . . . . . . . . . . . Ally Attacks 63 | . . 4 21 . . 26 . 4 . 2 . . 6 Total Damage 965 | . . 85 270 . . 260 . 61 . 91 . . 198 Kills 15 | . . 3 6 . . 3 . . . 2 . . 1 Allies Corrupted . | . . . . . . . . . . . . . . Allies Melted . | . . . . . . . . . . . . . . Intel | -11 -10 -10 -10 -8 -8 -8 -7 -7 -7 -7 -7 -7 -6 ------- Run | Yrd Mat Min Sub Mat Gar Mat Fac Was Fac Low Low Dat Pro Robot Analysis Total 1 | . 1 . . . . . . . . . . . . Derelict Logs Recovered 5 | . . 1 3 . . . . . . 1 . . . Drone Launches . | . . . . . . . . . . . . . . Drone Recoveries . | . . . . . . . . . . . . . . Exploration | -11 -10 -10 -10 -8 -8 -8 -7 -7 -7 -7 -7 -7 -6 ------------- Run | Yrd Mat Min Sub Mat Gar Mat Fac Was Fac Low Low Dat Pro Turns Passed 13570 | 117 1043 247 5590 577 1217 1525 423 181 1632 403 318 107 190 Spaces Moved 5731 | 56 557 55 1938 175 515 479 222 138 805 303 284 94 110 Core 12 | 12 . . . . . . . . . . . . . Treads 2906 | 44 557 55 1752 . . 442 . . 56 . . . . Legs 804 | . . . . . . . . . 13 303 284 94 110 Wheels 2009 | . . . 186 175 515 37 222 138 736 . . . . Hover . | . . . . . . . . . . . . . . Flight . | . . . . . . . . . . . . . . Fastest Speed 50 | 50 160 160 160 205 145 145 145 100 100 110 110 110 105 Average Speed 174 | 136 160 160 212 219 187 241 145 107 116 110 110 110 126 Slowest Speed 660 | 160 160 160 660 220 250 490 145 145 250 112 110 110 185 Overloaded Moves . | . . . . . . . . . . . . . . Propulsion Burnouts . | . . . . . . . . . . . . . . Robots Hopped . | . . . . . . . . . . . . . . Cave-ins Triggered . | . . . . . . . . . . . . . . Exploration Rate (%) 43 | 5 90 14 60 22 74 46 7 80 17 57 49 70 16 Regions Visited 13 Branch Regions 6 Pre-discovered Areas 10 | . 2 1 3 . . 1 . . . 2 . 1 . Known Exits Taken 2 | . 1 . . 1 . . . . . . . . . Unknown Exits Taken 8 | 1 . 1 1 . . 1 . . 1 1 1 1 . Scrap Searched 22 | . . . 17 . . . . . . 3 1 . 1 Spaces Dug 72 | . 22 . 3 . 5 4 7 8 16 6 . . 1 Terrain Destroyed 464 | . 67 . 8 10 107 11 42 8 166 38 1 . 6 Melee 9 | . . . . . . . . 8 1 . . . . Projectile 59 | . . . 8 . . 3 . . 21 20 1 . 6 AOE 396 | . 67 . . 10 107 8 42 . 144 18 . . . Terrain Rammed . | . . . . . . . . . . . . . . Walls Destroyed . | . . . . . . . . . . . . . . Machines Disabled . | . . . . . . . . . . . . . . Actions | -11 -10 -10 -10 -8 -8 -8 -7 -7 -7 -7 -7 -7 -6 --------- Run | Yrd Mat Min Sub Mat Gar Mat Fac Was Fac Low Low Dat Pro Total 8424 | 79 645 211 3258 284 671 735 278 157 1245 342 288 97 134 Wait 1706 | . 17 154 1132 26 20 153 13 5 176 4 . . 6 Move 5719 | 55 556 54 1937 174 514 478 222 137 804 302 283 93 110 Hop . | . . . . . . . . . . . . . . Pick Up 116 | 8 12 . 41 14 2 10 3 1 23 2 . . . Fast Attach 60 | 2 6 . 6 2 5 8 1 . 26 . 2 2 . Attach 50 | 4 . . 4 9 8 8 4 1 10 2 . . . Detach 9 | . . . 2 1 1 . 2 2 1 . . . . Swap 50 | 1 3 . 10 2 9 5 4 1 9 4 . . 2 Drop 102 | . 8 . 27 9 8 8 1 2 35 . 2 2 . Fire 406 | 8 36 1 81 45 64 42 11 . 73 28 1 . 16 Melee 134 | . . . 2 . . 20 17 8 87 . . . . Ram 1 | . . . . . . . . . 1 . . . . Kick . | . . . . . . . . . . . . . . Crush 13 | 1 7 2 . . . 3 . . . . . . . Escape Stasis 16 | . . . . . 16 . . . . . . . . Rewire 24 | . . . . . 24 . . . . . . . . Trap 1 | . . . 1 . . . . . . . . . . Miscellaneous 17 | . . . 15 2 . . . . . . . . . Route ------- -11/Scrapyard -10/Materials (discovered 4 exits: [*Mat x3] / *Min) -10/Mines (discovered 2 exits: [*Mat] / *Sub) -10/Subcaves (discovered 3 exits: *Mat x2 / *Rec) -8/Materials -8/Garrison (discovered 4 exits: *Mat x4) -8/Materials -7/Factory -7/Waste -7/Factory -7/Lower Caves (discovered 2 exits: [*Low] / [*Fac]) -7/Lower Caves -7/Data Miner -6/Proximity Caves History --------- Turn | Location | Event 53 | -11/Scrapyard | Discovered new exit (range 15) 118 | -11/Scrapyard | Entered Materials 306 | -10/Materials | Build established: Mutant 556 | -10/Materials | Identified exit to Mines 561 | -10/Materials | Discovered new exit (range 8) 667 | -10/Materials | Central database locked down 768 | -10/Materials | Discovered new exit (range 6) 888 | -10/Materials | Discovered new exit (range 9) 1161 | -10/Materials | Entered Mines 1187 | -10/Mines | Learned location of Zion (-6) 1209 | -10/Mines | Discovered new exit (range 9) 1232 | -10/Mines | Discovered new exit (range 15) 1408 | -10/Mines | Entered Subcaves 1408 | -10/Subcaves | Accompanied by 2 allies 1413 | -10/Subcaves | Led the pair of lost Derelicts to an unsafe place 1497 | -10/Subcaves | Discovered new exit (range 8) 1638 | -10/Subcaves | Discovered new exit (range 5) 1693 | -10/Subcaves | Met a Zionite searching for "candidates" 1717 | -10/Subcaves | A swath of the cavern ceiling suddenly collapsed 1739 | -10/Subcaves | Identified exit to Recycling 1822 | -10/Subcaves | Visited Clippyterm 2157 | -10/Subcaves | Build established: Subdweller-Mutant 3197 | -10/Subcaves | Learned location of Recycling (-9) 3313 | -10/Subcaves | Disturbed a concealed Subdweller 3823 | -10/Subcaves | Visited 4L-MR0's lab 4534 | -10/Subcaves | Core integrity fell below 50% 6253 | -10/Subcaves | Found Gun Armor 6624 | -10/Subcaves | Build established: Hauler-Mutant 6998 | -10/Subcaves | Entered Materials 6998 | -8/Materials | Evolved 4 slots: Propulsion x1, Utility x3 7445 | -8/Materials | Garrison activated, responded to threat 7530 | -8/Materials | Identified exit to Garrison 7575 | -8/Materials | Entered Garrison 7597 | -8/Garrison | Triggered checkpoint 7660 | -8/Garrison | Discovered new exit (range 6) 7787 | -8/Garrison | Triggered checkpoint 7875 | -8/Garrison | Phase Generator disabled 7940 | -8/Garrison | Lost 4 parts (1p1n1u1w) 7967 | -8/Garrison | Discovered new exit (range 9) 8007 | -8/Garrison | Triggered checkpoint 8066 | -8/Garrison | Discovered new exit (range 6) 8066 | -8/Garrison | Discovered new exit (range 66) 8066 | -8/Garrison | Discovered new exit (range 49) 8066 | -8/Garrison | Discovered new exit (range 64) 8097 | -8/Garrison | Garrison Relay disabled 8174 | -8/Garrison | Triggered checkpoint 8220 | -8/Garrison | Destroyed 7 combat bots 8363 | -8/Garrison | Garrison Relay disabled 8405 | -8/Garrison | Triggered checkpoint 8582 | -8/Garrison | Core integrity fell below 50% 8629 | -8/Garrison | Lost 3 parts (1n2w) 8701 | -8/Garrison | Garrison Relay disabled 8702 | -8/Garrison | Build established: Scavenger-Mutant 8792 | -8/Garrison | Entered Materials 8792 | -8/Materials | Accompanied by 3 allies 8996 | -8/Materials | Lost 3 allies 9183 | -8/Materials | Core integrity fell below 20% 9210 | -8/Materials | Lost 6 parts (1n3u2w) 10002 | -8/Materials | Attached Gun Armor, gained temporary slots: Weapon x2 10292 | -8/Materials | Discovered new exit (range 11) 10302 | -8/Materials | Build established: Gladiator 10317 | -8/Materials | Entered Factory 10317 | -7/Factory | Evolved 2 slots: Propulsion x1, Utility x1 10608 | -7/Factory | Build established: Scavenger-Gladiator 10740 | -7/Factory | Sucked down chute 10740 | -7/Factory | Entered Waste 10741 | -7/Waste | Met a frightened Derelict 10755 | -7/Waste | EMP discharged 10755 | -7/Waste | System corruption reached 10% 10766 | -7/Waste | Spotted C-40 Crusher 10771 | -7/Waste | Spotted C-40 Crusher 10772 | -7/Waste | Spotted C-40 Crusher 10787 | -7/Waste | Spotted C-40 Crusher 10788 | -7/Waste | Crushed by Compactor (0 parts destroyed, 1 dropped) 10789 | -7/Waste | Spotted C-40 Crusher 10790 | -7/Waste | Spotted C-40 Crusher 10821 | -7/Waste | Crushed by Compactor (0 parts destroyed, 1 dropped) 10855 | -7/Waste | EMP discharged 10902 | -7/Waste | Discovered new exit (range 16) 10921 | -7/Waste | Entered Factory 10932 | -7/Factory | Build established: Gladiator 11339 | -7/Factory | Fabricated F-cell Engine? 11387 | -7/Factory | Discovered new exit (range 16) 11753 | -7/Factory | Build established: Mutant 12415 | -7/Factory | Cargo convoy interrupted 12424 | -7/Factory | Core integrity fell below 50% 12447 | -7/Factory | Destroyed 7 combat bots 12484 | -7/Factory | Found Prototype Device 12484 | -7/Factory | Identified Exp. ECM Suite 12521 | -7/Factory | First assault squad dispatched 12553 | -7/Factory | Entered Lower Caves 12554 | -7/Lower Caves | NK-0LA showed up to help 12556 | -7/Lower Caves | NK-0LA revealed a hidden path 12561 | -7/Lower Caves | Met a Warlord Commander 12562 | -7/Lower Caves | Learned location of Warlord (-5) 12563 | -7/Lower Caves | Warlord Commander delivered Encrypted Comm Array 12568 | -7/Lower Caves | Found Unknown Device 12620 | -7/Lower Caves | Identified Encrypted Comm Array 12825 | -7/Lower Caves | Encountered a Warlord checkpoint 12946 | -7/Lower Caves | Discovered new exit (range 11) 12956 | -7/Lower Caves | Entered another Lower Caves area 13000 | -7/Lower Caves | Encountered a Warlord checkpoint 13259 | -7/Lower Caves | Discovered new exit (range 13) 13274 | -7/Lower Caves | Entered Data Miner 13275 | -7/Data Miner | Discovered new exit (range 6) 13294 | -7/Data Miner | Met Data Miner 13329 | -7/Data Miner | Learned location of Section 7 (-2) 13329 | -7/Data Miner | Acquired the access code to Warlord's prototype stash 13340 | -7/Data Miner | Received God Mode back door access code from Data Miner 13381 | -7/Data Miner | Entered Proximity Caves 13470 | -6/Proximity Caves | Escorted by Enhanced Grunt 13470 | -6/Proximity Caves | Attracted the attention of an 0b10 outpost 13531 | -6/Proximity Caves | Core integrity fell below 20% 13571 | -6/Proximity Caves | Destroyed by G-67 Veteran with Field Laser Last Messages --------------- 13526_ I-36 Angel knocked back. 13530_ Shield Generator destroyed. 13533_ F-cell Engine destroyed. 13541_ L-41 Fighter knocked back. 13544_ Destroyed Imp. Deuterium Engine. 13544_ L-41 Fighter knocked back. 13547_ =KQID9TU= G30=LP NW C2WGH GE AD,,6B> 13547_ L-41 Fighter knocked back. 13550_ L-41 Fighter Carbon-fiber Leg blasted off. 13550_ L-41 Fighter knocked back. 13553_ G-50 Soldier knocked back. 13556_ L-41 Fighter destroyed. 13556_ Critical hit (Burn: +37). 13559_ Overheating: System interference. 13559_ Transport Network Coupler temporarily disabled. 13559_ Lgt. Antimatter Cannon temporarily disabled. 13569_ G-50 Soldier knocked back. Map ----- +----------------------------------------------------+ | ?????????????????????????????????????????????????? | | ?????????????????????????????????????????????????? | | ?????????????????????????????????????????????????? | | ?????????????????????????????????????????????????? | | ?????????????????????????????????????????????????? | | ?????????????????????????????????????????????????? | | ?????????????????????????????????????????????????? | | ?????????????????????????????????????????????????? | | ?????????????????????????????????????????????????? | | ?????????????????????????????????????????????????? | | ???????????????????????????????###???????????????? | | ????????????????######???????### ##??????????????? | | ???????????????## #???????# ##?????????????? | | ???????????????# #??####?# #?????????????? | | ???????????????# #### ### ###![ ????????? | | ???????????????# ##??# * ##???????? | | ???????????????# #???? % #????????? | | ???????????????# ##????#! / ???????? | | ???????????????# #?????### "?????? | | ???????????????# ### #???????? "#????? | | ???????????????## ## #?## #???????? #????? | | ???????????????## ### ##?# ##??????????????? | | ???????????????# #### #?# ##???????????????? | | ??????????###### #?# #?# ##????????????????? | | ??????????# ### % #?# #?????????????????? | | ??????????# ###; @#?####?????????????????? | | ??????????## ### gigg########????????????????? | | ???????????## #????????????????? | | ???????????## % #????????????????? | | ???????????# %% #### #????????????????? | | ???????????## ;#;#;;#%##### ####?????????????? | | ??######???## ########% #?????????????? | | ## ##??## #####??# "%" #?????????? | | #?## ######### " ##?????????? | | ### ##????? =% #??????????? | | ### ## ##???# #?????????? | | ???# ##??# #? % % #?????????? | | ???## ##?# #??### ##?????????? | | ????### ## #?# #?????????????????? | | ??????## ### ### #?????????????????? | | ???????# #?## ## #?????????????????? | | ???????# ## #?### #?????????????????? | | ??????# ### #??# ##????????????????? | | ?????# ?### ##??# "" ##### #??????????? | | ?????# #???#####???# """" #??????????? | | ?????## ###???????????# """ #######??????????? | | ??????##??????????????# " ##????????????????? | | ??????????????????????# " #?????????????????? | | ??????????????????????# !"""" #?????????????????? | | ??????????????????????# " #?????????????????? | +----------------------------------------------------+ Best States ------------- Heat Dissipation 51 Coolant Potential 50 Energy Generation 19 Energy Capacity 500 Matter Stores 300 Matter Capacity 300 Sight Range 18 Terrain Scan Density 210 ECM Strength 3 Jamming Range 12 Armor Coverage 800 Core Shielding 20 Weapon Cycling 15 Evasion (%) 55 Targeting Accuracy 8 Melee Accuracy 5 Recoil Reduction 3 Item Schematics ----------------- Multitool | -8/Materials | Scanalyzed Melee Analysis Suite | -8/Materials | Scanalyzed Katana | -8/Materials | Scanalyzed Arm. Huge Wheel | -8/Materials | Scanalyzed Grenade Launcher | -8/Materials | Scanalyzed Combat Drone Bay | -7/Data Miner | Free Lgt. Regenerative Plating | -7/Data Miner | Free Cld. Cesium-ion Thruster | -7/Data Miner | Free Prc. Rocket Launcher | -7/Data Miner | Free Exp. Targeting Computer | -7/Data Miner | Free Gyrokinetic Inverter | -7/Data Miner | Free Imp. Launcher Guidance Computer | -7/Data Miner | Free Field Propulsion Array | -7/Data Miner | Free Imp. Transmission Jammer | -7/Data Miner | Free Imp. Core Shielding | -7/Data Miner | Free Smartbomb Launcher | -7/Data Miner | Free Robot Schematics ------------------ R-10 Processor | -7/Data Miner | Free H-66 Slayer | -7/Data Miner | Free M-28 Smith | -7/Data Miner | Free L-41 Fighter | -7/Data Miner | Free Fabricated ------------ F-cell Engine | x1 | -7/Factory | Preloaded Alien Tech Used ----------------- None Achievements -------------- None Challenges ------------ None Game ------ Seed UtilityActuatorMatter Manual? 0 Play Time 01:08:30 Cumulative 826.3 hours Start 2024.06.28 @ 14:44:53 End 2024.06.28 @ 16:15:12 Sessions 1 Manual Loads 0 Difficulty Rogue Special Mode None Game No. 520 Rogue 513 Adventurer 0 Explorer 7 Win Type - Total 55 Types 20/5/19/2/0/1/6/1/1 Lore% 90 Gallery% 97 Achievement% 84 Wizard Run 0 Options --------- Layout 2 ASCII 0 Keyboard 0 Movement Numpad Keybinds 0 Fullscreen 1 Font 24/Tamsyn Map View 50x44 Zoom Use 0% Tactical HUD 1 Map Filters NONE Filters NONE Steam 1 RUN: 0437f82a-d8f6-441b-8046-0e2732e661f9